{"text_format":"1","workbook":"xlsx","n_sheets":4,"sheets":["Start","Tickers","Result","List1"],"not_rendered":{"charts":0,"images":0,"macros":1,"external_links":0,"defined_names":0,"comments":0,"pivot_tables":0},"unopened":[],"bounds":{"document_bytes":16777216,"sheet_cells":100000,"rows_first":2000,"rows_last":500,"rows_between":2000,"halvings":0,"cell_chars":16384,"cell_head_chars":4096},"cells_cut":0,"cells_raw":0,"read":"whole","date_system":"1900"}

{"sheet":"Start","index":0,"n_rows":30,"n_cols":7,"rows_kept":30,"cut":false,"hidden":false,"merged":[]}
["tws.twsrtdserverctrl"]
["Body stock",null,"Ticker","Exchange","Ask","Bid","Last"]
[{"$f":"C3 & \"/\" & D3","v":"AAPL/SMART"},null,"AAPL","SMART",{"$f":"RTD($A1,,A3,E2)","v":"TwsRtdServer error: Not connected"},{"$f":"RTD($A1,,A3,F2)","v":"TwsRtdServer error: Not connected"},{"$f":"RTD($A1,,A3,G2)","v":0}]
[]
[null,null,"Expirace",20200821,null,"Pauza",3.0000578703703704]
[null,null,"TickerSet",4,null,"Počítadlo",2]
[]
["Body Option",null,"Strike","Typ","Ask","Bid","Last"]
[{"$f":"$C$3 & \"//\" & \"OPT\" & \"/\" &$D$5& \"/\" &D9& \"/\" &C9","v":"AAPL//OPT/20200821/P/-2"},null,{"$f":"C11-2","v":-2},"P",{"$f":"RTD($A$1,,A9,$E$2)","v":"TwsRtdServer error: Not connected"},{"$f":"RTD($A$1,,A9,$F$2)","v":"TwsRtdServer error: Not connected"},{"$f":"RTD($A$1,,A9,$G$2)","v":"TwsRtdServer error: Not connected"}]
["AAPL//OPT/20200821/P/-1",null,{"$f":"C11-1","v":-1},"P",{"$f":"RTD($A$1,,A10,$E$2)","v":"TwsRtdServer error: Not connected"},{"$f":"RTD($A$1,,A10,$F$2)","v":"TwsRtdServer error: Not connected"},{"$f":"RTD($A$1,,A10,$G$2)","v":"TwsRtdServer error: Not connected"}]
["AAPL//OPT/20200821/P/0",null,{"$f":"ROUND(G3,0)","v":0},"P",{"$f":"RTD($A$1,,A11,$E$2)","v":"TwsRtdServer error: Not connected"},{"$f":"RTD($A$1,,A11,$F$2)","v":"TwsRtdServer error: Not connected"},{"$f":"RTD($A$1,,A11,$G$2)","v":0}]
["AAPL//OPT/20200821/C/0",null,{"$f":"ROUND(G3,0)","v":0},"C",{"$f":"RTD($A$1,,A12,$E$2)","v":"TwsRtdServer error: Not connected"},{"$f":"RTD($A$1,,A12,$F$2)","v":"TwsRtdServer error: Not connected"},{"$f":"RTD($A$1,,A12,$G$2)","v":"TwsRtdServer error: Not connected"}]
["AAPL//OPT/20200821/C/1",null,{"$f":"C12+1","v":1},"C",{"$f":"RTD($A$1,,A13,$E$2)","v":"TwsRtdServer error: Not connected"},{"$f":"RTD($A$1,,A13,$F$2)","v":"TwsRtdServer error: Not connected"},{"$f":"RTD($A$1,,A13,$G$2)","v":"TwsRtdServer error: Not connected"}]
[{"$f":"$C$3 & \"//\" & \"OPT\" & \"/\" &$D$5& \"/\" &D14& \"/\" &C14","v":"AAPL//OPT/20200821/C/2"},null,{"$f":"C12+2","v":2},"C",{"$f":"RTD($A$1,,A14,$E$2)","v":"TwsRtdServer error: Not connected"},{"$f":"RTD($A$1,,A14,$F$2)","v":"TwsRtdServer error: Not connected"},{"$f":"RTD($A$1,,A14,$G$2)","v":0}]
[]
["Body Option",null,"Strike","Typ","Ask","Bid","Last"]
[{"$f":"$C$3 & \"//\" & \"OPT\" & \"/\" &$D$5& \"/\" &D17& \"/\" &C17","v":"AAPL//OPT/20200821/P/-5"},null,{"$f":"C19-5","v":-5},"P",{"$f":"RTD($A$1,,A17,$E$2)","v":"TwsRtdServer error: Not connected"},{"$f":"RTD($A$1,,A17,$F$2)","v":"TwsRtdServer error: Not connected"},{"$f":"RTD($A$1,,A17,$G$2)","v":"TwsRtdServer error: Not connected"}]
["AAPL//OPT/20200821/P/-2,5",null,{"$f":"C19-2.5","v":-2.5},"P",{"$f":"RTD($A$1,,A18,$E$2)","v":"TwsRtdServer error: Not connected"},{"$f":"RTD($A$1,,A18,$F$2)","v":"TwsRtdServer error: Not connected"},{"$f":"RTD($A$1,,A18,$G$2)","v":"TwsRtdServer error: Not connected"}]
["AAPL//OPT/20200821/P/0",null,{"$f":"MROUND(G3,2.5)","v":0},"P",{"$f":"RTD($A$1,,A19,$E$2)","v":"TwsRtdServer error: Not connected"},{"$f":"RTD($A$1,,A19,$F$2)","v":"TwsRtdServer error: Not connected"},{"$f":"RTD($A$1,,A19,$G$2)","v":0}]
["AAPL//OPT/20200821/C/0",null,{"$f":"MROUND(G3,2.5)","v":0},"C",{"$f":"RTD($A$1,,A20,$E$2)","v":"TwsRtdServer error: Not connected"},{"$f":"RTD($A$1,,A20,$F$2)","v":"TwsRtdServer error: Not connected"},{"$f":"RTD($A$1,,A20,$G$2)","v":"TwsRtdServer error: Not connected"}]
["AAPL//OPT/20200821/C/2,5",null,{"$f":"C20+2.5","v":2.5},"C",{"$f":"RTD($A$1,,A21,$E$2)","v":"TwsRtdServer error: Not connected"},{"$f":"RTD($A$1,,A21,$F$2)","v":"TwsRtdServer error: Not connected"},{"$f":"RTD($A$1,,A21,$G$2)","v":"TwsRtdServer error: Not connected"}]
["AAPL//OPT/20200821/C/5",null,{"$f":"C20+5","v":5},"C",{"$f":"RTD($A$1,,A22,$E$2)","v":"TwsRtdServer error: Not connected"},{"$f":"RTD($A$1,,A22,$F$2)","v":"TwsRtdServer error: Not connected"},{"$f":"RTD($A$1,,A22,$G$2)","v":"TwsRtdServer error: Not connected"}]
[]
["Body Option",null,"Strike","Typ","Ask","Bid","Last"]
[{"$f":"$C$3 & \"//\" & \"OPT\" & \"/\" &$D$5& \"/\" &D25& \"/\" &C25","v":"AAPL//OPT/20200821/P/-10"},null,{"$f":"C27-10","v":-10},"P",{"$f":"RTD($A$1,,A25,$E$2)","v":"TwsRtdServer error: Not connected"},{"$f":"RTD($A$1,,A25,$F$2)","v":"TwsRtdServer error: Not connected"},{"$f":"RTD($A$1,,A25,$G$2)","v":"TwsRtdServer error: Not connected"}]
["AAPL//OPT/20200821/P/-5",null,{"$f":"C27-5","v":-5},"P",{"$f":"RTD($A$1,,A26,$E$2)","v":"TwsRtdServer error: Not connected"},{"$f":"RTD($A$1,,A26,$F$2)","v":"TwsRtdServer error: Not connected"},{"$f":"RTD($A$1,,A26,$G$2)","v":"TwsRtdServer error: Not connected"}]
["AAPL//OPT/20200821/P/0",null,{"$f":"MROUND(G3,5)","v":0},"P",{"$f":"RTD($A$1,,A27,$E$2)","v":"TwsRtdServer error: Not connected"},{"$f":"RTD($A$1,,A27,$F$2)","v":"TwsRtdServer error: Not connected"},{"$f":"RTD($A$1,,A27,$G$2)","v":0}]
["AAPL//OPT/20200821/C/0",null,{"$f":"MROUND(G3,5)","v":0},"C",{"$f":"RTD($A$1,,A28,$E$2)","v":"TwsRtdServer error: Not connected"},{"$f":"RTD($A$1,,A28,$F$2)","v":"TwsRtdServer error: Not connected"},{"$f":"RTD($A$1,,A28,$G$2)","v":"TwsRtdServer error: Not connected"}]
["AAPL//OPT/20200821/C/5",null,{"$f":"C28+5","v":5},"C",{"$f":"RTD($A$1,,A29,$E$2)","v":"TwsRtdServer error: Not connected"},{"$f":"RTD($A$1,,A29,$F$2)","v":"TwsRtdServer error: Not connected"},{"$f":"RTD($A$1,,A29,$G$2)","v":"TwsRtdServer error: Not connected"}]
["AAPL//OPT/20200821/C/10",null,{"$f":"C28+10","v":10},"C",{"$f":"RTD($A$1,,A30,$E$2)","v":"TwsRtdServer error: Not connected"},{"$f":"RTD($A$1,,A30,$F$2)","v":"TwsRtdServer error: Not connected"},{"$f":"RTD($A$1,,A30,$G$2)","v":"TwsRtdServer error: Not connected"}]

{"sheet":"Tickers","index":1,"n_rows":1558,"n_cols":8,"rows_kept":1558,"cut":false,"hidden":false,"merged":[]}
["DJIA","MMM","SP500","AAPL","RUSSELL2000","AAN","NASDAQ100"," ATVI"]
[null,"AXP",null,"MSFT",null,"AAOI",null,"ADBE"]
[null,"AAPL",null,"AMZN",null,"AAON",null,"AMD"]
[null,"BA",null,"FB",null,"AAT",null,"ALXN"]
[null,"CAT",null,"GOOGL",null,"AAWW",null,"ALGN"]
[null,"CVX",null,"GOOG",null,"AAXN",null,"GOOG"]
[null,"KO",null,"JNJ",null,"ABCB",null,"GOOGL"]
[null,"DOW",null,"V",null,"ABEO",null,"AMZN"]
[null,"XOM",null,"PG",null,"ABG",null,"AMGN"]
[null,"GS",null,"JPM",null,"ABM",null,"ADI"]
[null,"HD",null,"UNH",null,"ABTX",null,"ANSS"]
[null,"INTC",null,"HD",null,"AC",null,"AAPL"]
[null,"IBM",null,"MA",null,"ACBI",null,"AMAT"]
[null,"JNJ",null,"NVDA",null,"ACCO",null,"ASML"]
[null,"JPM",null,"VZ",null,"ACIA",null,"ADSK"]
[null,"MCD",null,"PFE",null,"ACIW",null,"ADP"]
[null,"MRK",null,"PYPL",null,"ACLS",null,"BIDU"]
[null,"MSFT",null,"NFLX",null,"ACNB",null,"BIIB"]
[null,"NKE",null,"T",null,"ACOR",null,"BMRN"]
[null,"PFE",null,"ADBE",null,"ACRE",null,"BKNG"]
[null,"PG",null,"DIS",null,"ACRS",null,"AVGO"]
[null,"TRV",null,"INTC",null,"ACTG",null,"CDNS"]
[null,"UNH",null,"MRK",null,"ADC",null,"CDW"]
[null,"VZ",null,"CMCSA",null,"ADMS",null,"CERN"]
[null,"V",null,"BAC",null,"ADRO",null,"CHTR"]
[null,"WBA",null,"PEP",null,"ADSW",null,"CHKP"]
[null,"WMT",null,"XOM",null,"ADTN",null,"CTAS"]
[null,"DIS",null,"KO",null,"ADUS",null,"CTXS"]
[null,null,null,"WMT",null,"ADXS",null,"CTSH"]
[null,null,null,"ABT",null,"AE",null,"CMCSA"]
[null,null,null,"CRM",null,"AEGN",null,"CPRT"]
[null,null,null,"ABBV",null,"AEIS",null,"COST"]
[null,null,null,"CVX",null,"AEL",null,"CSX"]
[null,null,null,"TMO",null,"AEO",null,"DXCM"]
[null,null,null,"AMGN",null,"AERI",null,"DOCU"]
[null,null,null,"MCD",null,"AFH",null,"DLTR"]
[null,null,null,"COST",null,"AFI",null,"EBAY"]
[null,null,null,"ACN",null,"AGEN",null,"EA"]
[null,null,null,"NEE",null,"AGFS",null,"EXC"]
[null,null,null,"LLY",null,"AGM",null,"EXPE"]
[null,null,null,"BMY",null,"AGX",null,"FB"]
[null,null,null,"MDT",null,"AGYS",null,"FAST"]
[null,null,null,"LIN",null,"AHH",null,"FISV"]
[null,null,null,"DHR",null,"AHT",null,"FOX"]
[null,null,null,"AVGO",null,"AI",null,"FOXA"]
[null,null,null,"PM",null,"AIMC",null,"GILD"]
[null,null,null,"TXN",null,"AIMT",null,"IDXX"]
[null,null,null,"UNP",null,"AIN",null,"ILMN"]
[null,null,null,"AMT",null,"AIR",null,"INCY"]
[null,null,null,"NKE",null,"AIT",null,"INTC"]
[null,null,null,"ORCL",null,"AJRD",null,"INTU"]
[null,null,null,"LOW",null,"AJX",null,"ISRG"]
[null,null,null,"IBM",null,"AKBA",null,"JD"]
[null,null,null,"C",null,"AKR",null,"KLAC"]
[null,null,null,"HON",null,"AKTS",null,"LRCX"]
[null,null,null,"QCOM",null,"ALCO",null,"LBTYA"]
[null,null,null,"WFC",null,"ALE",null,"LBTYK"]
[null,null,null,"LMT",null,"ALEX",null,"LULU"]
[null,null,null,"GILD",null,"ALG",null,"MAR"]
[null,null,null,"SBUX",null,"ALGT",null,"MXIM"]
[null,null,null,"MMM",null,"ALRM",null,"MELI"]
[null,null,null,"FIS",null,"ALX",null,"MCHP"]
[null,null,null,"BLK",null,"AMAG",null,"MU"]
[null,null,null,"BA",null,"AMBA",null,"MSFT"]
[null,null,null,"AMD",null,"AMBC",null,"MRNA"]
[null,null,null,"RTX",null,"AMC",null,"MDLZ"]
[null,null,null,"UPS",null,"AMED",null,"MNST"]
[null,null,null,"SPGI",null,"AMKR",null,"NTAP"]
[null,null,null,"CHTR",null,"AMN",null,"NTES"]
[null,null,null,"NOW",null,"AMNB",null,"NFLX"]
[null,null,null,"CVS",null,"AMOT",null,"NVDA"]
[null,null,null,"MDLZ",null,"AMPH",null,"NXPI"]
[null,null,null,"ISRG",null,"AMRC",null,"ORLY"]
[null,null,null,"BDX",null,"AMSF",null,"PCAR"]
[null,null,null,"INTU",null,"AMSWA",null,"PAYX"]
[null,null,null,"PLD",null,"AMWD",null,"PYPL"]
[null,null,null,"MO",null,"ANAB",null,"PEP"]
[null,null,null,"CAT",null,"ANDE",null,"QCOM"]
[null,null,null,"CCI",null,"ANF",null,"REGN"]
[null,null,null,"VRTX",null,"ANGI",null,"ROST"]
[null,null,null,"ANTM",null,"ANGO",null,"SGEN"]
[null,null,null,"BKNG",null,"ANH",null,"SIRI"]
[null,null,null,"ZTS",null,"ANIK",null,"SWKS"]
[null,null,null,"D",null,"ANIP",null,"SPLK"]
[null,null,null,"EQIX",null,"AOSL",null,"SBUX"]
[null,null,null,"CI",null,"AP",null,"SNPS"]
[null,null,null,"CL",null,"APAM",null,"TMUS"]
[null,null,null,"SYK",null,"APEI",null,"TTWO"]
[null,null,null,"AXP",null,"APOG",null,"TSLA"]
[null,null,null,"APD",null,"APPF",null,"TXN"]
[null,null,null,"REGN",null,"APTS",null,"KHC"]
[null,null,null,"TJX",null,"AQMS",null,"TCOM"]
[null,null,null,"GS",null,"ARA",null,"ULTA"]
[null,null,null,"ATVI",null,"ARAY",null,"VRSN"]
[null,null,null,"DUK",null,"ARC",null,"VRSK"]
[null,null,null,"TGT",null,"ARCB",null,"VRTX"]
[null,null,null,"TMUS",null,"ARCH",null,"WBA"]
[null,null,null,"MS",null,"ARDX",null,"WDC"]
[null,null,null,"CB",null,"ARI",null,"WDAY"]
[null,null,null,"ADP",null,"ARNA",null,"XEL"]
[null,null,null,"MMC",null,"AROC",null,"XLNX"]
[null,null,null,"CME",null,"AROW",null,"ZM"]
[null,null,null,"SO",null,"ARR"]
[null,null,null,"AMAT",null,"ARTNA"]
[null,null,null,"GE",null,"ASC"]
[null,null,null,"FISV",null,"ASGN"]
[null,null,null,"BSX",null,"ASIX"]
[null,null,null,"DE",null,"ASMB"]
[null,null,null,"ILMN",null,"ASPS"]
[null,null,null,"MU",null,"ASTE"]
[null,null,null,"CSX",null,"AT"]
[null,null,null,"NEM",null,"ATEN"]
[null,null,null,"ITW",null,"ATGE"]
[null,null,null,"GPN",null,"ATHX"]
[null,null,null,"SHW",null,"ATI"]
[null,null,null,"HUM",null,"ATKR"]
[null,null,null,"ADSK",null,"ATLO"]
[null,null,null,"LRCX",null,"ATNI"]
[null,null,null,"KMB",null,"ATRA"]
[null,null,null,"PGR",null,"ATRC"]
[null,null,null,"USB",null,"ATRI"]
[null,null,null,"TFC",null,"ATRO"]
[null,null,null,"ICE",null,"ATRS"]
[null,null,null,"NSC",null,"ATSG"]
[null,null,null,"EW",null,"AVA"]
[null,null,null,"NOC",null,"AVAV"]
[null,null,null,"DG",null,"AVD"]
[null,null,null,"ECL",null,"AVID"]
[null,null,null,"AON",null,"AVXL"]
[null,null,null,"MCO",null,"AWR"]
[null,null,null,"PNC",null,"AXAS"]
[null,null,null,"BAX",null,"AXDX"]
[null,null,null,"BIIB",null,"AXGN"]
[null,null,null,"ROP",null,"AXL"]
[null,null,null,"ADI",null,"AXTI"]
[null,null,null,"EL",null,"AYX"]
[null,null,null,"COP",null,"AZPN"]
[null,null,null,"WM",null,"AZZ"]
[null,null,null,"DLR",null,"B"]
[null,null,null,"AEP",null,"BANC"]
[null,null,null,"DD",null,"BANF"]
[null,null,null,"FDX",null,"BANR"]
[null,null,null,"EA",null,"BATRA"]
[null,null,null,"DXCM",null,"BATRK"]
[null,null,null,"SCHW",null,"BBGI"]
[null,null,null,"ETN",null,"BBSI"]
[null,null,null,"GIS",null,"BBW"]
[null,null,null,"CNC",null,"BCBP"]
[null,null,null,"EMR",null,"BCC"]
[null,null,null,"LHX",null,"BCEI"]
[null,null,null,"EXC",null,"BCO"]
[null,null,null,"SRE",null,"BCOR"]
[null,null,null,"EBAY",null,"BCOV"]
[null,null,null,"XEL",null,"BCPC"]
[null,null,null,"SBAC",null,"BCRX"]
[null,null,null,"CTSH",null,"BDC"]
[null,null,null,"GD",null,"BDGE"]
[null,null,null,"HCA",null,"BEAT"]
[null,null,null,"ORLY",null,"BECN"]
[null,null,null,"GM",null,"BELFB"]
[null,null,null,"MSCI",null,"BFIN"]
[null,null,null,"INFO",null,"BFS"]
[null,null,null,"DOW",null,"BGFV"]
[null,null,null,"ROST",null,"BGS"]
[null,null,null,"IDXX",null,"BGSF"]
[null,null,null,"APH",null,"BH"]
[null,null,null,"TROW",null,"BHB"]
[null,null,null,"KLAC",null,"BHE"]
[null,null,null,"VRSK",null,"BHLB"]
[null,null,null,"ES",null,"BHVN"]
[null,null,null,"WBA",null,"BIG"]
[null,null,null,"COF",null,"BJRI"]
[null,null,null,"STZ",null,"BKE"]
[null,null,null,"MET",null,"BKH"]
[null,null,null,"A",null,"BL"]
[null,null,null,"SNPS",null,"BLCM"]
[null,null,null,"TEL",null,"BLD"]
[null,null,null,"WEC",null,"BLDR"]
[null,null,null,"CDNS",null,"BLKB"]
[null,null,null,"TRV",null,"BLMN"]
[null,null,null,"ALL",null,"BLUE"]
[null,null,null,"PCAR",null,"BLX"]
[null,null,null,"CMI",null,"BMCH"]
[null,null,null,"CMG",null,"BMI"]
[null,null,null,"BK",null,"BMRC"]
[null,null,null,"PSA",null,"BMTC"]
[null,null,null,"TWTR",null,"BNED"]
[null,null,null,"RMD",null,"BNFT"]
[null,null,null,"MNST",null,"BOCH"]
[null,null,null,"CLX",null,"BOOM"]
[null,null,null,"IQV",null,"BOOT"]
[null,null,null,"PSX",null,"BOX"]
[null,null,null,"ZBH",null,"BPFH"]
[null,null,null,"YUM",null,"BPMC"]
[null,null,null,"JCI",null,"BRC"]
[null,null,null,"AIG",null,"BREW"]
[null,null,null,"EOG",null,"BRG"]
[null,null,null,"KMI",null,"BRKL"]
[null,null,null,"KR",null,"BRKS"]
[null,null,null,"AZO",null,"BSET"]
[null,null,null,"SYY",null,"BSRR"]
[null,null,null,"F",null,"BSTC"]
[null,null,null,"WLTW",null,"BTU"]
[null,null,null,"SLB",null,"BUSE"]
[null,null,null,"AWK",null,"BV"]
[null,null,null,"FAST",null,"BW"]
[null,null,null,"TT",null,"BWFG"]
[null,null,null,"PEG",null,"BXS"]
[null,null,null,"XLNX",null,"BYD"]
[null,null,null,"PRU",null,"BZH"]
[null,null,null,"AFL",null,"CAC"]
[null,null,null,"ANSS",null,"CACI"]
[null,null,null,"PPG",null,"CADE"]
[null,null,null,"OTIS",null,"CAI"]
[null,null,null,"MPC",null,"CAKE"]
[null,null,null,"ED",null,"CAL"]
[null,null,null,"ROK",null,"CALA"]
[null,null,null,"CTAS",null,"CALM"]
[null,null,null,"MCHP",null,"CALX"]
[null,null,null,"MCK",null,"CAMP"]
[null,null,null,"HPQ",null,"CAR"]
[null,null,null,"VLO",null,"CARA"]
[null,null,null,"GLW",null,"CARS"]
[null,null,null,"BLL",null,"CASS"]
[null,null,null,"SWK",null,"CATM"]
[null,null,null,"MSI",null,"CATO"]
[null,null,null,"ADM",null,"CATY"]
[null,null,null,"WMB",null,"CBB"]
[null,null,null,"MKC",null,"CBL"]
[null,null,null,"MAR",null,"CBRL"]
[null,null,null,"PH",null,"CBU"]
[null,null,null,"PAYX",null,"CBZ"]
[null,null,null,"ALXN",null,"CCBG"]
[null,null,null,"SWKS",null,"CCC"]
[null,null,null,"STT",null,"CCF"]
[null,null,null,"DLTR",null,"CCMP"]
[null,null,null,"CERN",null,"CCNE"]
[null,null,null,"DHI",null,"CCO"]
[null,null,null,"BBY",null,"CCOI"]
[null,null,null,"ARE",null,"CCRN"]
[null,null,null,"FLT",null,"CCS"]
[null,null,null,"CARR",null,"CCXI"]
[null,null,null,"DTE",null,"CDE"]
[null,null,null,"KHC",null,"CDR"]
[null,null,null,"MTD",null,"CDXS"]
[null,null,null,"CHD",null,"CDZI"]
[null,null,null,"HLT",null,"CECE"]
[null,null,null,"FTV",null,"CENT"]
[null,null,null,"HSY",null,"CENTA"]
[null,null,null,"VRSN",null,"CENX"]
[null,null,null,"ALGN",null,"CERS"]
[null,null,null,"CTVA",null,"CETV"]
[null,null,null,"TDG",null,"CEVA"]
[null,null,null,"AME",null,"CFFI"]
[null,null,null,"APTV",null,"CFFN"]
[null,null,null,"AVB",null,"CFMS"]
[null,null,null,"WY",null,"CFNB"]
[null,null,null,"O",null,"CHCO"]
[null,null,null,"ETR",null,"CHCT"]
[null,null,null,"EIX",null,"CHDN"]
[null,null,null,"LEN",null,"CHE"]
[null,null,null,"SPG",null,"CHEF"]
[null,null,null,"PPL",null,"CHGG"]
[null,null,null,"AJG",null,"CHMG"]
[null,null,null,"WST",null,"CHMI"]
[null,null,null,"EFX",null,"CHRS"]
[null,null,null,"VFC",null,"CHS"]
[null,null,null,"AEE",null,"CHUY"]
[null,null,null,"MKTX",null,"CIA"]
[null,null,null,"FCX",null,"CIEN"]
[null,null,null,"AMP",null,"CIO"]
[null,null,null,"FRC",null,"CIR"]
[null,null,null,"CPRT",null,"CIVB"]
[null,null,null,"MXIM",null,"CIX"]
[null,null,null,"LH",null,"CKH"]
[null,null,null,"EQR",null,"CLCT"]
[null,null,null,"TFX",null,"CLDR"]
[null,null,null,"FTNT",null,"CLDT"]
[null,null,null,"RSG",null,"CLDX"]
[null,null,null,"TSN",null,"CLF"]
[null,null,null,"CAG",null,"CLFD"]
[null,null,null,"CMS",null,"CLI"]
[null,null,null,"AKAM",null,"CLNE"]
[null,null,null,"K",null,"CLPR"]
[null,null,null,"TTWO",null,"CLSD"]
[null,null,null,"LYB",null,"CLVS"]
[null,null,null,"ODFL",null,"CLW"]
[null,null,null,"INCY",null,"CMC"]
[null,null,null,"TSCO",null,"CMCO"]
[null,null,null,"CAH",null,"CMD"]
[null,null,null,"NTRS",null,"CMO"]
[null,null,null,"AMCR",null,"CMP"]
[null,null,null,"LUV",null,"CMPR"]
[null,null,null,"DGX",null,"CMRE"]
[null,null,null,"CDW",null,"CMRX"]
[null,null,null,"HOLX",null,"CMT"]
[null,null,null,"PXD",null,"CMTL"]
[null,null,null,"DFS",null,"CNBKA"]
[null,null,null,"KMX",null,"CNCE"]
[null,null,null,"CTXS",null,"CNMD"]
[null,null,null,"VMC",null,"CNO"]
[null,null,null,"ABC",null,"CNOB"]
[null,null,null,"DOV",null,"CNS"]
[null,null,null,"FE",null,"CNSL"]
[null,null,null,"BR",null,"CNTY"]
[null,null,null,"OXY",null,"CNXN"]
[null,null,null,"KSU",null,"COHU"]
[null,null,null,"PEAK",null,"COKE"]
[null,null,null,"NDAQ",null,"COLB"]
[null,null,null,"LVS",null,"COLL"]
[null,null,null,"HIG",null,"COLM"]
[null,null,null,"MAS",null,"CONN"]
[null,null,null,"GWW",null,"CORE"]
[null,null,null,"DPZ",null,"CORR"]
[null,null,null,"DRE",null,"CORT"]
[null,null,null,"ZBRA",null,"COUP"]
[null,null,null,"DAL",null,"COWN"]
[null,null,null,"EVRG",null,"CPE"]
[null,null,null,"IP",null,"CPF"]
[null,null,null,"PAYC",null,"CPK"]
[null,null,null,"VTR",null,"CPRX"]
[null,null,null,"CBRE",null,"CPS"]
[null,null,null,"ESS",null,"CPSI"]
[null,null,null,"GRMN",null,"CRAI"]
[null,null,null,"EXPD",null,"CRBP"]
[null,null,null,"FITB",null,"CREE"]
[null,null,null,"HRL",null,"CRIS"]
[null,null,null,"MTB",null,"CRMT"]
[null,null,null,"COO",null,"CROX"]
[null,null,null,"FMC",null,"CRS"]
[null,null,null,"TYL",null,"CRUS"]
[null,null,null,"XYL",null,"CRVL"]
[null,null,null,"JKHY",null,"CRVS"]
[null,null,null,"STE",null,"CRY"]
[null,null,null,"NVR",null,"CSGS"]
[null,null,null,"IFF",null,"CSII"]
[null,null,null,"VIAC",null,"CSLT"]
[null,null,null,"WAT",null,"CSOD"]
[null,null,null,"ANET",null,"CSTE"]
[null,null,null,"ABMD",null,"CSTR"]
[null,null,null,"QRVO",null,"CSU"]
[null,null,null,"TIF",null,"CSV"]
[null,null,null,"MLM",null,"CSWI"]
[null,null,null,"GPC",null,"CTB"]
[null,null,null,"HAL",null,"CTBI"]
[null,null,null,"PKI",null,"CTLT"]
[null,null,null,"NUE",null,"CTMX"]
[null,null,null,"EXR",null,"CTO"]
[null,null,null,"BXP",null,"CTRE"]
[null,null,null,"LNT",null,"CTRN"]
[null,null,null,"HES",null,"CTS"]
[null,null,null,"MAA",null,"CTT"]
[null,null,null,"CHRW",null,"CUB"]
[null,null,null,"SYF",null,"CUBI"]
[null,null,null,"CINF",null,"CUTR"]
[null,null,null,"ATO",null,"CUZ"]
[null,null,null,"HPE",null,"CVA"]
[null,null,null,"SJM",null,"CVBF"]
[null,null,null,"IEX",null,"CVCO"]
[null,null,null,"WDC",null,"CVCY"]
[null,null,null,"VAR",null,"CVGI"]
[null,null,null,"KEY",null,"CVGW"]
[null,null,null,"LDOS",null,"CVI"]
[null,null,null,"OKE",null,"CVLT"]
[null,null,null,"WAB",null,"CVLY"]
[null,null,null,"ETFC",null,"CVNA"]
[null,null,null,"SIVB",null,"CW"]
[null,null,null,"URI",null,"CWCO"]
[null,null,null,"EXPE",null,"CWH"]
[null,null,null,"CE",null,"CWST"]
[null,null,null,"OMC",null,"CWT"]
[null,null,null,"ULTA",null,"CYBE"]
[null,null,null,"NLOK",null,"CYH"]
[null,null,null,"BIO",null,"CYTK"]
[null,null,null,"PHM",null,"CZNC"]
[null,null,null,"PFG",null,"CZR"]
[null,null,null,"J",null,"DAKT"]
[null,null,null,"IT",null,"DAN"]
[null,null,null,"TDY",null,"DAR"]
[null,null,null,"JBHT",null,"DBD"]
[null,null,null,"IR",null,"DCO"]
[null,null,null,"CFG",null,"DCOM"]
[null,null,null,"RF",null,"DDD"]
[null,null,null,"CNP",null,"DDS"]
[null,null,null,"FBHS",null,"DEA"]
[null,null,null,"EMN",null,"DECK"]
[null,null,null,"CXO",null,"DENN"]
[null,null,null,"UDR",null,"DFIN"]
[null,null,null,"DRI",null,"DGICA"]
[null,null,null,"BKR",null,"DGII"]
[null,null,null,"AAP",null,"DHIL"]
[null,null,null,"AES",null,"DHT"]
[null,null,null,"STX",null,"DHX"]
[null,null,null,"WHR",null,"DIN"]
[null,null,null,"WU",null,"DIOD"]
[null,null,null,"HSIC",null,"DJCO"]
[null,null,null,"XRAY",null,"DK"]
[null,null,null,"CBOE",null,"DLA"]
[null,null,null,"AVY",null,"DLTH"]
[null,null,null,"HBAN",null,"DLX"]
[null,null,null,"NTAP",null,"DMRC"]
[null,null,null,"PKG",null,"DNOW"]
[null,null,null,"HAS",null,"DOC"]
[null,null,null,"CTL",null,"DOOR"]
[null,null,null,"PNW",null,"DORM"]
[null,null,null,"WRB",null,"DRH"]
[null,null,null,"ALLE",null,"DRQ"]
[null,null,null,"NI",null,"DRRX"]
[null,null,null,"L",null,"DS"]
[null,null,null,"UHS",null,"DSKE"]
[null,null,null,"FOXA",null,"DSPG"]
[null,null,null,"ALB",null,"DVAX"]
[null,null,null,"RJF",null,"DX"]
[null,null,null,"RE",null,"DXPE"]
[null,null,null,"LKQ",null,"DY"]
[null,null,null,"MYL",null,"EARN"]
[null,null,null,"LW",null,"EAT"]
[null,null,null,"RCL",null,"EBF"]
[null,null,null,"DISH",null,"EBIX"]
[null,null,null,"NRG",null,"EBS"]
[null,null,null,"CPB",null,"EBSB"]
[null,null,null,"JNPR",null,"EBTC"]
[null,null,null,"MGM",null,"ECHO"]
[null,null,null,"UAL",null,"ECOL"]
[null,null,null,"FFIV",null,"ECPG"]
[null,null,null,"DVA",null,"EDIT"]
[null,null,null,"GL",null,"EEX"]
[null,null,null,"IRM",null,"EFSC"]
[null,null,null,"SNA",null,"EGBN"]
[null,null,null,"BWA",null,"EGHT"]
[null,null,null,"HST",null,"EGLE"]
[null,null,null,"TXT",null,"EGOV"]
[null,null,null,"WRK",null,"EGP"]
[null,null,null,"PRGO",null,"EGRX"]
[null,null,null,"LNC",null,"EHTH"]
[null,null,null,"COG",null,"EIG"]
[null,null,null,"AOS",null,"EIGI"]
[null,null,null,"PNR",null,"ELF"]
[null,null,null,"IPG",null,"ELVT"]
[null,null,null,"WYNN",null,"ELY"]
[null,null,null,"ROL",null,"EME"]
[null,null,null,"HII",null,"EMKR"]
[null,null,null,"REG",null,"EML"]
[null,null,null,"CCL",null,"ENS"]
[null,null,null,"TAP",null,"ENSG"]
[null,null,null,"CF",null,"ENTA"]
[null,null,null,"NWL",null,"ENTG"]
[null,null,null,"LYV",null,"ENV"]
[null,null,null,"FANG",null,"ENVA"]
[null,null,null,"AIZ",null,"ENZ"]
[null,null,null,"IPGP",null,"EPAM"]
[null,null,null,"RHI",null,"EPAY"]
[null,null,null,"DISCK",null,"EPM"]
[null,null,null,"BEN",null,"EPZM"]
[null,null,null,"HWM",null,"EQBK"]
[null,null,null,"PWR",null,"ERII"]
[null,null,null,"LB",null,"EROS"]
[null,null,null,"VNO",null,"ESCA"]
[null,null,null,"SEE",null,"ESE"]
[null,null,null,"ZION",null,"ESGR"]
[null,null,null,"AAL",null,"ESNT"]
[null,null,null,"AIV",null,"ESPR"]
[null,null,null,"FLIR",null,"ESSA"]
[null,null,null,"CMA",null,"ESTE"]
[null,null,null,"FRT",null,"ESXB"]
[null,null,null,"HBI",null,"ETH"]
[null,null,null,"MHK",null,"ETM"]
[null,null,null,"NBL",null,"ETSY"]
[null,null,null,"NLSN",null,"EVBG"]
[null,null,null,"PBCT",null,"EVBN"]
[null,null,null,"APA",null,"EVC"]
[null,null,null,"LEG",null,"EVH"]
[null,null,null,"MOS",null,"EVI"]
[null,null,null,"NWSA",null,"EVR"]
[null,null,null,"KIM",null,"EVRI"]
[null,null,null,"MRO",null,"EVTC"]
[null,null,null,"DXC",null,"EXAS"]
[null,null,null,"NOV",null,"EXLS"]
[null,null,null,"ALK",null,"EXPO"]
[null,null,null,"DVN",null,"EXPR"]
[null,null,null,"FOX",null,"EXTN"]
[null,null,null,"HFC",null,"EXTR"]
[null,null,null,"SLG",null,"EZPW"]
[null,null,null,"IVZ",null,"FARM"]
[null,null,null,"FLS",null,"FARO"]
[null,null,null,"PVH",null,"FATE"]
[null,null,null,"TPR",null,"FBC"]
[null,null,null,"UNM",null,"FBIO"]
[null,null,null,"NCLH",null,"FBIZ"]
[null,null,null,"RL",null,"FBK"]
[null,null,null,"DISCA",null,"FBM"]
[null,null,null,"FTI",null,"FBMS"]
[null,null,null,"KSS",null,"FBNC"]
[null,null,null,"GPS",null,"FBP"]
[null,null,null,"XRX",null,"FC"]
[null,null,null,"HRB",null,"FCBC"]
[null,null,null,"UAA",null,"FCF"]
[null,null,null,"UA",null,"FCFS"]
[null,null,null,"NWS",null,"FCN"]
[null,null,null,"COTY",null,"FCNCA"]
[null,null,null,null,null,"FCPT"]
[null,null,null,null,null,"FDP"]
[null,null,null,null,null,"FELE"]
[null,null,null,null,null,"FET"]
[null,null,null,null,null,"FF"]
[null,null,null,null,null,"FFBC"]
[null,null,null,null,null,"FFG"]
[null,null,null,null,null,"FFIC"]
[null,null,null,null,null,"FFIN"]
[null,null,null,null,null,"FFNW"]
[null,null,null,null,null,"FFWM"]
[null,null,null,null,null,"FGBI"]
[null,null,null,null,null,"FGEN"]
[null,null,null,null,null,"FI"]
[null,null,null,null,null,"FIBK"]
[null,null,null,null,null,"FICO"]
[null,null,null,null,null,"FISI"]
[null,null,null,null,null,"FIT"]
[null,null,null,null,null,"FIVN"]
[null,null,null,null,null,"FIX"]
[null,null,null,null,null,"FIZZ"]
[null,null,null,null,null,"FLDM"]
[null,null,null,null,null,"FLIC"]
[null,null,null,null,null,"FLOW"]
[null,null,null,null,null,"FLWS"]
[null,null,null,null,null,"FLXN"]
[null,null,null,null,null,"FLXS"]
[null,null,null,null,null,"FMAO"]
[null,null,null,null,null,"FMBH"]
[null,null,null,null,null,"FMBI"]
[null,null,null,null,null,"FMNB"]
[null,null,null,null,null,"FN"]
[null,null,null,null,null,"FNHC"]
[null,null,null,null,null,"FNLC"]
[null,null,null,null,null,"FNWB"]
[null,null,null,null,null,"FOE"]
[null,null,null,null,null,"FOLD"]
[null,null,null,null,null,"FONR"]
[null,null,null,null,null,"FOR"]
[null,null,null,null,null,"FORM"]
[null,null,null,null,null,"FORR"]
[null,null,null,null,null,"FOSL"]
[null,null,null,null,null,"FOXF"]
[null,null,null,null,null,"FPI"]
[null,null,null,null,null,"FPRX"]
[null,null,null,null,null,"FR"]
[null,null,null,null,null,"FRAN"]
[null,null,null,null,null,"FRBK"]
[null,null,null,null,null,"FRGI"]
[null,null,null,null,null,"FRME"]
[null,null,null,null,null,"FRO"]
[null,null,null,null,null,"FRPH"]
[null,null,null,null,null,"FRPT"]
[null,null,null,null,null,"FRTA"]
[null,null,null,null,null,"FSAM"]
[null,null,null,null,null,"FSB"]
[null,null,null,null,null,"FSP"]
[null,null,null,null,null,"FSS"]
[null,null,null,null,null,"FSTR"]
[null,null,null,null,null,"FTK"]
[null,null,null,null,null,"FUL"]
[null,null,null,null,null,"FULT"]
[null,null,null,null,null,"FWRD"]
[null,null,null,null,null,"GABC"]
[null,null,null,null,null,"GAIA"]
[null,null,null,null,null,"GATX"]
[null,null,null,null,null,"GBCI"]
[null,null,null,null,null,"GBL"]
[null,null,null,null,null,"GBLI"]
[null,null,null,null,null,"GBT"]
[null,null,null,null,null,"GBX"]
[null,null,null,null,null,"GCBC"]
[null,null,null,null,null,"GCI"]
[null,null,null,null,null,"GCO"]
[null,null,null,null,null,"GCP"]
[null,null,null,null,null,"GDEN"]
[null,null,null,null,null,"GDOT"]
[null,null,null,null,null,"GEN"]
[null,null,null,null,null,"GENC"]
[null,null,null,null,null,"GEO"]
[null,null,null,null,null,"GEOS"]
[null,null,null,null,null,"GERN"]
[null,null,null,null,null,"GES"]
[null,null,null,null,null,"GFF"]
[null,null,null,null,null,"GHL"]
[null,null,null,null,null,"GHM"]
[null,null,null,null,null,"GIFI"]
[null,null,null,null,null,"GIII"]
[null,null,null,null,null,"GKOS"]
[null,null,null,null,null,"GLDD"]
[null,null,null,null,null,"GLNG"]
[null,null,null,null,null,"GLOG"]
[null,null,null,null,null,"GLT"]
[null,null,null,null,null,"GLUU"]
[null,null,null,null,null,"GMED"]
[null,null,null,null,null,"GMRE"]
[null,null,null,null,null,"GMS"]
[null,null,null,null,null,"GNCA"]
[null,null,null,null,null,"GNE"]
[null,null,null,null,null,"GNK"]
[null,null,null,null,null,"GNL"]
[null,null,null,null,null,"GNMK"]
[null,null,null,null,null,"GNRC"]
[null,null,null,null,null,"GNTY"]
[null,null,null,null,null,"GNW"]
[null,null,null,null,null,"GOGO"]
[null,null,null,null,null,"GOLF"]
[null,null,null,null,null,"GOOD"]
[null,null,null,null,null,"GORO"]
[null,null,null,null,null,"GPI"]
[null,null,null,null,null,"GPRE"]
[null,null,null,null,null,"GPX"]
[null,null,null,null,null,"GRBK"]
[null,null,null,null,null,"GRC"]
[null,null,null,null,null,"GRIF"]
[null,null,null,null,null,"GRPN"]
[null,null,null,null,null,"GRUB"]
[null,null,null,null,null,"GSAT"]
[null,null,null,null,null,"GSBC"]
[null,null,null,null,null,"GSIT"]
[null,null,null,null,null,"GTLS"]
[null,null,null,null,null,"GTN"]
[null,null,null,null,null,"GTS"]
[null,null,null,null,null,"GTT"]
[null,null,null,null,null,"GTY"]
[null,null,null,null,null,"GVA"]
[null,null,null,null,null,"GWB"]
[null,null,null,null,null,"GWRS"]
[null,null,null,null,null,"HA"]
[null,null,null,null,null,"HAE"]
[null,null,null,null,null,"HAFC"]
[null,null,null,null,null,"HALL"]
[null,null,null,null,null,"HALO"]
[null,null,null,null,null,"HASI"]
[null,null,null,null,null,"HAYN"]
[null,null,null,null,null,"HBCP"]
[null,null,null,null,null,"HBMD"]
[null,null,null,null,null,"HBNC"]
[null,null,null,null,null,"HBP"]
[null,null,null,null,null,"HCC"]
[null,null,null,null,null,"HCCI"]
[null,null,null,null,null,"HCHC"]
[null,null,null,null,null,"HCI"]
[null,null,null,null,null,"HCKT"]
[null,null,null,null,null,"HCSG"]
[null,null,null,null,null,"HDSN"]
[null,null,null,null,null,"HEES"]
[null,null,null,null,null,"HELE"]
[null,null,null,null,null,"HFWA"]
[null,null,null,null,null,"HI"]
[null,null,null,null,null,"HIBB"]
[null,null,null,null,null,"HIFS"]
[null,null,null,null,null,"HIL"]
[null,null,null,null,null,"HL"]
[null,null,null,null,null,"HLI"]
[null,null,null,null,null,"HLIT"]
[null,null,null,null,null,"HLNE"]
[null,null,null,null,null,"HLX"]
[null,null,null,null,null,"HMHC"]
[null,null,null,null,null,"HMN"]
[null,null,null,null,null,"HMST"]
[null,null,null,null,null,"HMSY"]
[null,null,null,null,null,"HMTV"]
[null,null,null,null,null,"HNI"]
[null,null,null,null,null,"HNRG"]
[null,null,null,null,null,"HOFT"]
[null,null,null,null,null,"HOMB"]
[null,null,null,null,null,"HOME"]
[null,null,null,null,null,"HONE"]
[null,null,null,null,null,"HOPE"]
[null,null,null,null,null,"HOV"]
[null,null,null,null,null,"HQY"]
[null,null,null,null,null,"HR"]
[null,null,null,null,null,"HRI"]
[null,null,null,null,null,"HRTG"]
[null,null,null,null,null,"HRTX"]
[null,null,null,null,null,"HSC"]
[null,null,null,null,null,"HSII"]
[null,null,null,null,null,"HSKA"]
[null,null,null,null,null,"HSTM"]
[null,null,null,null,null,"HT"]
[null,null,null,null,null,"HTBI"]
[null,null,null,null,null,"HTBK"]
[null,null,null,null,null,"HTH"]
[null,null,null,null,null,"HTLD"]
[null,null,null,null,null,"HTLF"]
[null,null,null,null,null,"HTZ"]
[null,null,null,null,null,"HUBG"]
[null,null,null,null,null,"HUBS"]
[null,null,null,null,null,"HURC"]
[null,null,null,null,null,"HURN"]
[null,null,null,null,null,"HVT"]
[null,null,null,null,null,"HWKN"]
[null,null,null,null,null,"HY"]
[null,null,null,null,null,"HZN"]
[null,null,null,null,null,"HZNP"]
[null,null,null,null,null,"HZO"]
[null,null,null,null,null,"IART"]
[null,null,null,null,null,"IBCP"]
[null,null,null,null,null,"IBOC"]
[null,null,null,null,null,"IBP"]
[null,null,null,null,null,"IBTX"]
[null,null,null,null,null,"ICBK"]
[null,null,null,null,null,"ICD"]
[null,null,null,null,null,"ICFI"]
[null,null,null,null,null,"ICHR"]
[null,null,null,null,null,"ICON"]
[null,null,null,null,null,"ICUI"]
[null,null,null,null,null,"IDA"]
[null,null,null,null,null,"IDCC"]
[null,null,null,null,null,"IDRA"]
[null,null,null,null,null,"IDT"]
[null,null,null,null,null,"IESC"]
[null,null,null,null,null,"IHC"]
[null,null,null,null,null,"III"]
[null,null,null,null,null,"IIIN"]
[null,null,null,null,null,"IIVI"]
[null,null,null,null,null,"IMAX"]
[null,null,null,null,null,"IMGN"]
[null,null,null,null,null,"IMH"]
[null,null,null,null,null,"IMKTA"]
[null,null,null,null,null,"IMMR"]
[null,null,null,null,null,"IMMU"]
[null,null,null,null,null,"INBK"]
[null,null,null,null,null,"INDB"]
[null,null,null,null,null,"INFN"]
[null,null,null,null,null,"INGN"]
[null,null,null,null,null,"INN"]
[null,null,null,null,null,"INO"]
[null,null,null,null,null,"INOV"]
[null,null,null,null,null,"INSE"]
[null,null,null,null,null,"INSM"]
[null,null,null,null,null,"INSW"]
[null,null,null,null,null,"INVA"]
[null,null,null,null,null,"INWK"]
[null,null,null,null,null,"IOSP"]
[null,null,null,null,null,"IPAR"]
[null,null,null,null,null,"IPHI"]
[null,null,null,null,null,"IPI"]
[null,null,null,null,null,"IRBT"]
[null,null,null,null,null,"IRDM"]
[null,null,null,null,null,"IRET"]
[null,null,null,null,null,"IRT"]
[null,null,null,null,null,"IRTC"]
[null,null,null,null,null,"IRWD"]
[null,null,null,null,null,"ISBC"]
[null,null,null,null,null,"ISTR"]
[null,null,null,null,null,"ITCI"]
[null,null,null,null,null,"ITGR"]
[null,null,null,null,null,"ITI"]
[null,null,null,null,null,"ITIC"]
[null,null,null,null,null,"ITRI"]
[null,null,null,null,null,"IVAC"]
[null,null,null,null,null,"IVC"]
[null,null,null,null,null,"IVR"]
[null,null,null,null,null,"JACK"]
[null,null,null,null,null,"JAX"]
[null,null,null,null,null,"JBSS"]
[null,null,null,null,null,"JBT"]
[null,null,null,null,null,"JCAP"]
[null,null,null,null,null,"JCOM"]
[null,null,null,null,null,"JELD"]
[null,null,null,null,null,"JILL"]
[null,null,null,null,null,"JJSF"]
[null,null,null,null,null,"JNCE"]
[null,null,null,null,null,"JOE"]
[null,null,null,null,null,"JOUT"]
[null,null,null,null,null,"JRVR"]
[null,null,null,null,null,"KAI"]
[null,null,null,null,null,"KALU"]
[null,null,null,null,null,"KAMN"]
[null,null,null,null,null,"KBAL"]
[null,null,null,null,null,"KBH"]
[null,null,null,null,null,"KBR"]
[null,null,null,null,null,"KE"]
[null,null,null,null,null,"KELYA"]
[null,null,null,null,null,"KFRC"]
[null,null,null,null,null,"KFY"]
[null,null,null,null,null,"KIN"]
[null,null,null,null,null,"KINS"]
[null,null,null,null,null,"KIRK"]
[null,null,null,null,null,"KMPR"]
[null,null,null,null,null,"KMT"]
[null,null,null,null,null,"KN"]
[null,null,null,null,null,"KNL"]
[null,null,null,null,null,"KNSL"]
[null,null,null,null,null,"KNX"]
[null,null,null,null,null,"KODK"]
[null,null,null,null,null,"KOP"]
[null,null,null,null,null,"KOPN"]
[null,null,null,null,null,"KPTI"]
[null,null,null,null,null,"KRA"]
[null,null,null,null,null,"KREF"]
[null,null,null,null,null,"KRG"]
[null,null,null,null,null,"KRNY"]
[null,null,null,null,null,"KRO"]
[null,null,null,null,null,"KTOS"]
[null,null,null,null,null,"KURA"]
[null,null,null,null,null,"KVHI"]
[null,null,null,null,null,"KW"]
[null,null,null,null,null,"KWR"]
[null,null,null,null,null,"LAD"]
[null,null,null,null,null,"LADR"]
[null,null,null,null,null,"LANC"]
[null,null,null,null,null,"LAUR"]
[null,null,null,null,null,"LAWS"]
[null,null,null,null,null,"LBAI"]
[null,null,null,null,null,"LC"]
[null,null,null,null,null,"LCI"]
[null,null,null,null,null,"LCII"]
[null,null,null,null,null,"LCNB"]
[null,null,null,null,null,"LCUT"]
[null,null,null,null,null,"LDL"]
[null,null,null,null,null,"LE"]
[null,null,null,null,null,"LFUS"]
[null,null,null,null,null,"LGIH"]
[null,null,null,null,null,"LGND"]
[null,null,null,null,null,"LHCG"]
[null,null,null,null,null,"LIND"]
[null,null,null,null,null,"LITE"]
[null,null,null,null,null,"LIVN"]
[null,null,null,null,null,"LJPC"]
[null,null,null,null,null,"LKFN"]
[null,null,null,null,null,"LL"]
[null,null,null,null,null,"LLNW"]
[null,null,null,null,null,"LMAT"]
[null,null,null,null,null,"LMNR"]
[null,null,null,null,null,"LMNX"]
[null,null,null,null,null,"LNDC"]
[null,null,null,null,null,"LNN"]
[null,null,null,null,null,"LNTH"]
[null,null,null,null,null,"LOB"]
[null,null,null,null,null,"LOCO"]
[null,null,null,null,null,"LOPE"]
[null,null,null,null,null,"LORL"]
[null,null,null,null,null,"LPG"]
[null,null,null,null,null,"LPSN"]
[null,null,null,null,null,"LPX"]
[null,null,null,null,null,"LQDT"]
[null,null,null,null,null,"LRN"]
[null,null,null,null,null,"LSCC"]
[null,null,null,null,null,"LTC"]
[null,null,null,null,null,"LTRPA"]
[null,null,null,null,null,"LWAY"]
[null,null,null,null,null,"LXP"]
[null,null,null,null,null,"LXRX"]
[null,null,null,null,null,"LXU"]
[null,null,null,null,null,"LYTS"]
[null,null,null,null,null,"LZB"]
[null,null,null,null,null,"MACK"]
[null,null,null,null,null,"MANT"]
[null,null,null,null,null,"MASI"]
[null,null,null,null,null,"MATX"]
[null,null,null,null,null,"MBCN"]
[null,null,null,null,null,"MBI"]
[null,null,null,null,null,"MBUU"]
[null,null,null,null,null,"MBWM"]
[null,null,null,null,null,"MC"]
[null,null,null,null,null,"MCBC"]
[null,null,null,null,null,"MCF"]
[null,null,null,null,null,"MCFT"]
[null,null,null,null,null,"MCRB"]
[null,null,null,null,null,"MCRI"]
[null,null,null,null,null,"MCS"]
[null,null,null,null,null,"MDC"]
[null,null,null,null,null,"MDCA"]
[null,null,null,null,null,"MDGL"]
[null,null,null,null,null,"MDLY"]
[null,null,null,null,null,"MDP"]
[null,null,null,null,null,"MDRX"]
[null,null,null,null,null,"MDXG"]
[null,null,null,null,null,"MED"]
[null,null,null,null,null,"MEDP"]
[null,null,null,null,null,"MEET"]
[null,null,null,null,null,"MEI"]
[null,null,null,null,null,"METC"]
[null,null,null,null,null,"MG"]
[null,null,null,null,null,"MGEE"]
[null,null,null,null,null,"MGEN"]
[null,null,null,null,null,"MGI"]
[null,null,null,null,null,"MGLN"]
[null,null,null,null,null,"MGNX"]
[null,null,null,null,null,"MGPI"]
[null,null,null,null,null,"MGRC"]
[null,null,null,null,null,"MHLD"]
[null,null,null,null,null,"MHO"]
[null,null,null,null,null,"MITK"]
[null,null,null,null,null,"MITT"]
[null,null,null,null,null,"MJCO"]
[null,null,null,null,null,"MKSI"]
[null,null,null,null,null,"MLAB"]
[null,null,null,null,null,"MLHR"]
[null,null,null,null,null,"MLI"]
[null,null,null,null,null,"MLP"]
[null,null,null,null,null,"MLR"]
[null,null,null,null,null,"MLVF"]
[null,null,null,null,null,"MMI"]
[null,null,null,null,null,"MMS"]
[null,null,null,null,null,"MMSI"]
[null,null,null,null,null,"MNOV"]
[null,null,null,null,null,"MNR"]
[null,null,null,null,null,"MNRO"]
[null,null,null,null,null,"MNTA"]
[null,null,null,null,null,"MOBL"]
[null,null,null,null,null,"MOD"]
[null,null,null,null,null,"MODN"]
[null,null,null,null,null,"MOFG"]
[null,null,null,null,null,"MOH"]
[null,null,null,null,null,"MOV"]
[null,null,null,null,null,"MPAA"]
[null,null,null,null,null,"MPWR"]
[null,null,null,null,null,"MPX"]
[null,null,null,null,null,"MRC"]
[null,null,null,null,null,"MRCY"]
[null,null,null,null,null,"MRLN"]
[null,null,null,null,null,"MRTN"]
[null,null,null,null,null,"MSA"]
[null,null,null,null,null,"MSBI"]
[null,null,null,null,null,"MSEX"]
[null,null,null,null,null,"MSGN"]
[null,null,null,null,null,"MSTR"]
[null,null,null,null,null,"MTDR"]
[null,null,null,null,null,"MTG"]
[null,null,null,null,null,"MTH"]
[null,null,null,null,null,"MTNB"]
[null,null,null,null,null,"MTOR"]
[null,null,null,null,null,"MTRN"]
[null,null,null,null,null,"MTRX"]
[null,null,null,null,null,"MTSC"]
[null,null,null,null,null,"MTSI"]
[null,null,null,null,null,"MTW"]
[null,null,null,null,null,"MTX"]
[null,null,null,null,null,"MTZ"]
[null,null,null,null,null,"MVIS"]
[null,null,null,null,null,"MWA"]
[null,null,null,null,null,"MXL"]
[null,null,null,null,null,"MYE"]
[null,null,null,null,null,"MYGN"]
[null,null,null,null,null,"MYOK"]
[null,null,null,null,null,"MYRG"]
[null,null,null,null,null,"NAT"]
[null,null,null,null,null,"NATH"]
[null,null,null,null,null,"NATR"]
[null,null,null,null,null,"NAV"]
[null,null,null,null,null,"NBHC"]
[null,null,null,null,null,"NBN"]
[null,null,null,null,null,"NBTB"]
[null,null,null,null,null,"NC"]
[null,null,null,null,null,"NCBS"]
[null,null,null,null,null,"NCMI"]
[null,null,null,null,null,"NCSM"]
[null,null,null,null,null,"NDLS"]
[null,null,null,null,null,"NEO"]
[null,null,null,null,null,"NEOG"]
[null,null,null,null,null,"NEOS"]
[null,null,null,null,null,"NERV"]
[null,null,null,null,null,"NEWR"]
[null,null,null,null,null,"NFBK"]
[null,null,null,null,null,"NGHC"]
[null,null,null,null,null,"NGS"]
[null,null,null,null,null,"NGVC"]
[null,null,null,null,null,"NGVT"]
[null,null,null,null,null,"NH"]
[null,null,null,null,null,"NHC"]
[null,null,null,null,null,"NHI"]
[null,null,null,null,null,"NHTC"]
[null,null,null,null,null,"NJR"]
[null,null,null,null,null,"NK"]
[null,null,null,null,null,"NKSH"]
[null,null,null,null,null,"NKTR"]
[null,null,null,null,null,"NL"]
[null,null,null,null,null,"NLS"]
[null,null,null,null,null,"NM"]
[null,null,null,null,null,"NMIH"]
[null,null,null,null,null,"NNA"]
[null,null,null,null,null,"NNBR"]
[null,null,null,null,null,"NNI"]
[null,null,null,null,null,"NODK"]
[null,null,null,null,null,"NOVT"]
[null,null,null,null,null,"NP"]
[null,null,null,null,null,"NPK"]
[null,null,null,null,null,"NPO"]
[null,null,null,null,null,"NPTN"]
[null,null,null,null,null,"NR"]
[null,null,null,null,null,"NRIM"]
[null,null,null,null,null,"NSA"]
[null,null,null,null,null,"NSIT"]
[null,null,null,null,null,"NSP"]
[null,null,null,null,null,"NSSC"]
[null,null,null,null,null,"NSTG"]
[null,null,null,null,null,"NTB"]
[null,null,null,null,null,"NTCT"]
[null,null,null,null,null,"NTGR"]
[null,null,null,null,null,"NTLA"]
[null,null,null,null,null,"NTNX"]
[null,null,null,null,null,"NTRA"]
[null,null,null,null,null,"NUVA"]
[null,null,null,null,null,"NVAX"]
[null,null,null,null,null,"NVCR"]
[null,null,null,null,null,"NVEC"]
[null,null,null,null,null,"NVEE"]
[null,null,null,null,null,"NVRO"]
[null,null,null,null,null,"NVTA"]
[null,null,null,null,null,"NWBI"]
[null,null,null,null,null,"NWE"]
[null,null,null,null,null,"NWFL"]
[null,null,null,null,null,"NWHM"]
[null,null,null,null,null,"NWLI"]
[null,null,null,null,null,"NWN"]
[null,null,null,null,null,"NWPX"]
[null,null,null,null,null,"NX"]
[null,null,null,null,null,"NXRT"]
[null,null,null,null,null,"NXST"]
[null,null,null,null,null,"NYMT"]
[null,null,null,null,null,"NYMX"]
[null,null,null,null,null,"NYT"]
[null,null,null,null,null,"OAS"]
[null,null,null,null,null,"OBLN"]
[null,null,null,null,null,"OCFC"]
[null,null,null,null,null,"OCN"]
[null,null,null,null,null,"OCUL"]
[null,null,null,null,null,"OCX"]
[null,null,null,null,null,"ODC"]
[null,null,null,null,null,"ODP"]
[null,null,null,null,null,"OFED"]
[null,null,null,null,null,"OFG"]
[null,null,null,null,null,"OFIX"]
[null,null,null,null,null,"OFLX"]
[null,null,null,null,null,"OGS"]
[null,null,null,null,null,"OIS"]
[null,null,null,null,null,"OKTA"]
[null,null,null,null,null,"OLLI"]
[null,null,null,null,null,"OLP"]
[null,null,null,null,null,"OMCL"]
[null,null,null,null,null,"OMER"]
[null,null,null,null,null,"OMI"]
[null,null,null,null,null,"ONB"]
[null,null,null,null,null,"ONDK"]
[null,null,null,null,null,"ONVO"]
[null,null,null,null,null,"OOMA"]
[null,null,null,null,null,"OPOF"]
[null,null,null,null,null,"OPY"]
[null,null,null,null,null,"ORA"]
[null,null,null,null,null,"ORBC"]
[null,null,null,null,null,"ORC"]
[null,null,null,null,null,"ORN"]
[null,null,null,null,null,"ORRF"]
[null,null,null,null,null,"OSBC"]
[null,null,null,null,null,"OSG"]
[null,null,null,null,null,"OSIS"]
[null,null,null,null,null,"OSTK"]
[null,null,null,null,null,"OSUR"]
[null,null,null,null,null,"OTIC"]
[null,null,null,null,null,"OTTR"]
[null,null,null,null,null,"OVBC"]
[null,null,null,null,null,"OVID"]
[null,null,null,null,null,"OXFD"]
[null,null,null,null,null,"OXM"]
[null,null,null,null,null,"PACB"]
[null,null,null,null,null,"PAHC"]
[null,null,null,null,null,"PARR"]
[null,null,null,null,null,"PATK"]
[null,null,null,null,null,"PAYC"]
[null,null,null,null,null,"PBH"]
[null,null,null,null,null,"PBIP"]
[null,null,null,null,null,"PBNC"]
[null,null,null,null,null,"PBPB"]
[null,null,null,null,null,"PBYI"]
[null,null,null,null,null,"PCH"]
[null,null,null,null,null,"PCRX"]
[null,null,null,null,null,"PCSB"]
[null,null,null,null,null,"PCTY"]
[null,null,null,null,null,"PCYG"]
[null,null,null,null,null,"PCYO"]
[null,null,null,null,null,"PDCE"]
[null,null,null,null,null,"PDFS"]
[null,null,null,null,null,"PDLI"]
[null,null,null,null,null,"PEB"]
[null,null,null,null,null,"PEBK"]
[null,null,null,null,null,"PEBO"]
[null,null,null,null,null,"PEGA"]
[null,null,null,null,null,"PEI"]
[null,null,null,null,null,"PEIX"]
[null,null,null,null,null,"PEN"]
[null,null,null,null,null,"PENN"]
[null,null,null,null,null,"PETS"]
[null,null,null,null,null,"PFBC"]
[null,null,null,null,null,"PFBI"]
[null,null,null,null,null,"PFGC"]
[null,null,null,null,null,"PFIS"]
[null,null,null,null,null,"PFPT"]
[null,null,null,null,null,"PFS"]
[null,null,null,null,null,"PFSI"]
[null,null,null,null,null,"PGC"]
[null,null,null,null,null,"PGTI"]
[null,null,null,null,null,"PHX"]
[null,null,null,null,null,"PI"]
[null,null,null,null,null,"PICO"]
[null,null,null,null,null,"PIRS"]
[null,null,null,null,null,"PJT"]
[null,null,null,null,null,"PKBK"]
[null,null,null,null,null,"PKE"]
[null,null,null,null,null,"PKOH"]
[null,null,null,null,null,"PLAB"]
[null,null,null,null,null,"PLAY"]
[null,null,null,null,null,"PLCE"]
[null,null,null,null,null,"PLNT"]
[null,null,null,null,null,"PLOW"]
[null,null,null,null,null,"PLPC"]
[null,null,null,null,null,"PLSE"]
[null,null,null,null,null,"PLT"]
[null,null,null,null,null,"PLUG"]
[null,null,null,null,null,"PLUS"]
[null,null,null,null,null,"PLXS"]
[null,null,null,null,null,"PMBC"]
[null,null,null,null,null,"PMT"]
[null,null,null,null,null,"PMTS"]
[null,null,null,null,null,"PNM"]
[null,null,null,null,null,"PODD"]
[null,null,null,null,null,"POR"]
[null,null,null,null,null,"POWI"]
[null,null,null,null,null,"POWL"]
[null,null,null,null,null,"PPBI"]
[null,null,null,null,null,"PRAA"]
[null,null,null,null,null,"PRAH"]
[null,null,null,null,null,"PRFT"]
[null,null,null,null,null,"PRGS"]
[null,null,null,null,null,"PRI"]
[null,null,null,null,null,"PRIM"]
[null,null,null,null,null,"PRK"]
[null,null,null,null,null,"PRLB"]
[null,null,null,null,null,"PRMW"]
[null,null,null,null,null,"PRO"]
[null,null,null,null,null,"PROV"]
[null,null,null,null,null,"PRSC"]
[null,null,null,null,null,"PRTA"]
[null,null,null,null,null,"PRTK"]
[null,null,null,null,null,"PRTY"]
[null,null,null,null,null,"PSB"]
[null,null,null,null,null,"PSMT"]
[null,null,null,null,null,"PSTG"]
[null,null,null,null,null,"PTCT"]
[null,null,null,null,null,"PTGX"]
[null,null,null,null,null,"PUMP"]
[null,null,null,null,null,"PVAC"]
[null,null,null,null,null,"PVBC"]
[null,null,null,null,null,"PWOD"]
[null,null,null,null,null,"PXLW"]
[null,null,null,null,null,"PZN"]
[null,null,null,null,null,"PZZA"]
[null,null,null,null,null,"QADA"]
[null,null,null,null,null,"QCRH"]
[null,null,null,null,null,"QDEL"]
[null,null,null,null,null,"QLYS"]
[null,null,null,null,null,"QNST"]
[null,null,null,null,null,"QTNT"]
[null,null,null,null,null,"QTS"]
[null,null,null,null,null,"QTWO"]
[null,null,null,null,null,"QUAD"]
[null,null,null,null,null,"QUOT"]
[null,null,null,null,null,"RAIL"]
[null,null,null,null,null,"RARE"]
[null,null,null,null,null,"RAVN"]
[null,null,null,null,null,"RBCAA"]
[null,null,null,null,null,"RCII"]
[null,null,null,null,null,"RCM"]
[null,null,null,null,null,"RDI"]
[null,null,null,null,null,"RDN"]
[null,null,null,null,null,"RDNT"]
[null,null,null,null,null,"RDUS"]
[null,null,null,null,null,"REGI"]
[null,null,null,null,null,"REI"]
[null,null,null,null,null,"REPH"]
[null,null,null,null,null,"RESI"]
[null,null,null,null,null,"RETA"]
[null,null,null,null,null,"REV"]
[null,null,null,null,null,"REVG"]
[null,null,null,null,null,"REX"]
[null,null,null,null,null,"REXR"]
[null,null,null,null,null,"RGCO"]
[null,null,null,null,null,"RGEN"]
[null,null,null,null,null,"RGNX"]
[null,null,null,null,null,"RGR"]
[null,null,null,null,null,"RGS"]
[null,null,null,null,null,"RH"]
[null,null,null,null,null,"RHP"]
[null,null,null,null,null,"RICK"]
[null,null,null,null,null,"RIGL"]
[null,null,null,null,null,"RILY"]
[null,null,null,null,null,"RLGT"]
[null,null,null,null,null,"RLH"]
[null,null,null,null,null,"RLI"]
[null,null,null,null,null,"RLJ"]
[null,null,null,null,null,"RM"]
[null,null,null,null,null,"RMAX"]
[null,null,null,null,null,"RMBS"]
[null,null,null,null,null,"RMR"]
[null,null,null,null,null,"RMTI"]
[null,null,null,null,null,"RNET"]
[null,null,null,null,null,"RNG"]
[null,null,null,null,null,"RNST"]
[null,null,null,null,null,"RNWK"]
[null,null,null,null,null,"ROCK"]
[null,null,null,null,null,"ROG"]
[null,null,null,null,null,"ROIC"]
[null,null,null,null,null,"RP"]
[null,null,null,null,null,"RPD"]
[null,null,null,null,null,"RPT"]
[null,null,null,null,null,"RRD"]
[null,null,null,null,null,"RRGB"]
[null,null,null,null,null,"RRR"]
[null,null,null,null,null,"RRTS"]
[null,null,null,null,null,"RST"]
[null,null,null,null,null,"RTRX"]
[null,null,null,null,null,"RUN"]
[null,null,null,null,null,"RUSHA"]
[null,null,null,null,null,"RUSHB"]
[null,null,null,null,null,"RUTH"]
[null,null,null,null,null,"RVNC"]
[null,null,null,null,null,"RVSB"]
[null,null,null,null,null,"RWT"]
[null,null,null,null,null,"RXN"]
[null,null,null,null,null,"RYAM"]
[null,null,null,null,null,"RYI"]
[null,null,null,null,null,"SAFM"]
[null,null,null,null,null,"SAFT"]
[null,null,null,null,null,"SAGE"]
[null,null,null,null,null,"SAH"]
[null,null,null,null,null,"SAIA"]
[null,null,null,null,null,"SAIC"]
[null,null,null,null,null,"SALM"]
[null,null,null,null,null,"SALT"]
[null,null,null,null,null,"SAM"]
[null,null,null,null,null,"SAMG"]
[null,null,null,null,null,"SANM"]
[null,null,null,null,null,"SASR"]
[null,null,null,null,null,"SB"]
[null,null,null,null,null,"SBBP"]
[null,null,null,null,null,"SBCF"]
[null,null,null,null,null,"SBGI"]
[null,null,null,null,null,"SBOW"]
[null,null,null,null,null,"SBRA"]
[null,null,null,null,null,"SBSI"]
[null,null,null,null,null,"SCHL"]
[null,null,null,null,null,"SCHN"]
[null,null,null,null,null,"SCL"]
[null,null,null,null,null,"SCS"]
[null,null,null,null,null,"SCSC"]
[null,null,null,null,null,"SCVL"]
[null,null,null,null,null,"SCWX"]
[null,null,null,null,null,"SD"]
[null,null,null,null,null,"SEAS"]
[null,null,null,null,null,"SELB"]
[null,null,null,null,null,"SEM"]
[null,null,null,null,null,"SENEA"]
[null,null,null,null,null,"SF"]
[null,null,null,null,null,"SFBS"]
[null,null,null,null,null,"SFE"]
[null,null,null,null,null,"SFL"]
[null,null,null,null,null,"SFNC"]
[null,null,null,null,null,"SFST"]
[null,null,null,null,null,"SGA"]
[null,null,null,null,null,"SGC"]
[null,null,null,null,null,"SGMO"]
[null,null,null,null,null,"SGMS"]
[null,null,null,null,null,"SGRY"]
[null,null,null,null,null,"SHAK"]
[null,null,null,null,null,"SHBI"]
[null,null,null,null,null,"SHEN"]
[null,null,null,null,null,"SHLO"]
[null,null,null,null,null,"SHO"]
[null,null,null,null,null,"SHOO"]
[null,null,null,null,null,"SIEN"]
[null,null,null,null,null,"SIGI"]
[null,null,null,null,null,"SIGM"]
[null,null,null,null,null,"SITE"]
[null,null,null,null,null,"SJI"]
[null,null,null,null,null,"SJW"]
[null,null,null,null,null,"SKYW"]
[null,null,null,null,null,"SLAB"]
[null,null,null,null,null,"SLCA"]
[null,null,null,null,null,"SLP"]
[null,null,null,null,null,"SMBC"]
[null,null,null,null,null,"SMBK"]
[null,null,null,null,null,"SMCI"]
[null,null,null,null,null,"SMHI"]
[null,null,null,null,null,"SMMF"]
[null,null,null,null,null,"SMP"]
[null,null,null,null,null,"SNCR"]
[null,null,null,null,null,"SND"]
[null,null,null,null,null,"SNDR"]
[null,null,null,null,null,"SNDX"]
[null,null,null,null,null,"SNR"]
[null,null,null,null,null,"SNX"]
[null,null,null,null,null,"SOI"]
[null,null,null,null,null,"SONA"]
[null,null,null,null,null,"SP"]
[null,null,null,null,null,"SPKE"]
[null,null,null,null,null,"SPN"]
[null,null,null,null,null,"SPOK"]
[null,null,null,null,null,"SPPI"]
[null,null,null,null,null,"SPSC"]
[null,null,null,null,null,"SPTN"]
[null,null,null,null,null,"SPWH"]
[null,null,null,null,null,"SPWR"]
[null,null,null,null,null,"SPXC"]
[null,null,null,null,null,"SQBG"]
[null,null,null,null,null,"SR"]
[null,null,null,null,null,"SRCE"]
[null,null,null,null,null,"SRDX"]
[null,null,null,null,null,"SREV"]
[null,null,null,null,null,"SRG"]
[null,null,null,null,null,"SRI"]
[null,null,null,null,null,"SRPT"]
[null,null,null,null,null,"SRT"]
[null,null,null,null,null,"SSB"]
[null,null,null,null,null,"SSD"]
[null,null,null,null,null,"SSP"]
[null,null,null,null,null,"SSTK"]
[null,null,null,null,null,"SSYS"]
[null,null,null,null,null,"STAA"]
[null,null,null,null,null,"STAG"]
[null,null,null,null,null,"STAR"]
[null,null,null,null,null,"STBA"]
[null,null,null,null,null,"STC"]
[null,null,null,null,null,"STFC"]
[null,null,null,null,null,"STL"]
[null,null,null,null,null,"STMP"]
[null,null,null,null,null,"STNG"]
[null,null,null,null,null,"STRA"]
[null,null,null,null,null,"STRL"]
[null,null,null,null,null,"STRS"]
[null,null,null,null,null,"SUM"]
[null,null,null,null,null,"SUP"]
[null,null,null,null,null,"SUPN"]
[null,null,null,null,null,"SWM"]
[null,null,null,null,null,"SWX"]
[null,null,null,null,null,"SXC"]
[null,null,null,null,null,"SXI"]
[null,null,null,null,null,"SXT"]
[null,null,null,null,null,"SYBT"]
[null,null,null,null,null,"SYKE"]
[null,null,null,null,null,"SYNA"]
[null,null,null,null,null,"SYRS"]
[null,null,null,null,null,"SYX"]
[null,null,null,null,null,"TACO"]
[null,null,null,null,null,"TAST"]
[null,null,null,null,null,"TBBK"]
[null,null,null,null,null,"TBI"]
[null,null,null,null,null,"TBK"]
[null,null,null,null,null,"TBNK"]
[null,null,null,null,null,"TBPH"]
[null,null,null,null,null,"TCBI"]
[null,null,null,null,null,"TCBK"]
[null,null,null,null,null,"TCFC"]
[null,null,null,null,null,"TCI"]
[null,null,null,null,null,"TCMD"]
[null,null,null,null,null,"TCX"]
[null,null,null,null,null,"TDOC"]
[null,null,null,null,null,"TELL"]
[null,null,null,null,null,"TEN"]
[null,null,null,null,null,"TG"]
[null,null,null,null,null,"TGH"]
[null,null,null,null,null,"TGI"]
[null,null,null,null,null,"TGTX"]
[null,null,null,null,null,"THC"]
[null,null,null,null,null,"THFF"]
[null,null,null,null,null,"THR"]
[null,null,null,null,null,"THRM"]
[null,null,null,null,null,"TILE"]
[null,null,null,null,null,"TIPT"]
[null,null,null,null,null,"TISI"]
[null,null,null,null,null,"TITN"]
[null,null,null,null,null,"TK"]
[null,null,null,null,null,"TLGT"]
[null,null,null,null,null,"TLYS"]
[null,null,null,null,null,"TMHC"]
[null,null,null,null,null,"TMP"]
[null,null,null,null,null,"TMST"]
[null,null,null,null,null,"TNAV"]
[null,null,null,null,null,"TNC"]
[null,null,null,null,null,"TNET"]
[null,null,null,null,null,"TNK"]
[null,null,null,null,null,"TOWN"]
[null,null,null,null,null,"TPB"]
[null,null,null,null,null,"TPC"]
[null,null,null,null,null,"TPH"]
[null,null,null,null,null,"TPHS"]
[null,null,null,null,null,"TPIC"]
[null,null,null,null,null,"TPRE"]
[null,null,null,null,null,"TR"]
[null,null,null,null,null,"TRC"]
[null,null,null,null,null,"TREC"]
[null,null,null,null,null,"TREE"]
[null,null,null,null,null,"TRHC"]
[null,null,null,null,null,"TRMK"]
[null,null,null,null,null,"TRNO"]
[null,null,null,null,null,"TROX"]
[null,null,null,null,null,"TRS"]
[null,null,null,null,null,"TRST"]
[null,null,null,null,null,"TRTN"]
[null,null,null,null,null,"TRUE"]
[null,null,null,null,null,"TRUP"]
[null,null,null,null,null,"TRVN"]
[null,null,null,null,null,"TSBK"]
[null,null,null,null,null,"TSC"]
[null,null,null,null,null,"TSE"]
[null,null,null,null,null,"TSQ"]
[null,null,null,null,null,"TTD"]
[null,null,null,null,null,"TTEC"]
[null,null,null,null,null,"TTEK"]
[null,null,null,null,null,"TTGT"]
[null,null,null,null,null,"TTI"]
[null,null,null,null,null,"TTMI"]
[null,null,null,null,null,"TUSK"]
[null,null,null,null,null,"TVTY"]
[null,null,null,null,null,"TWI"]
[null,null,null,null,null,"TWIN"]
[null,null,null,null,null,"TWLO"]
[null,null,null,null,null,"TWNK"]
[null,null,null,null,null,"TWOU"]
[null,null,null,null,null,"TXMD"]
[null,null,null,null,null,"TXRH"]
[null,null,null,null,null,"UBA"]
[null,null,null,null,null,"UBFO"]
[null,null,null,null,null,"UBSI"]
[null,null,null,null,null,"UCBI"]
[null,null,null,null,null,"UCTT"]
[null,null,null,null,null,"UE"]
[null,null,null,null,null,"UEC"]
[null,null,null,null,null,"UEIC"]
[null,null,null,null,null,"UFCS"]
[null,null,null,null,null,"UFI"]
[null,null,null,null,null,"UFPI"]
[null,null,null,null,null,"UFPT"]
[null,null,null,null,null,"UHT"]
[null,null,null,null,null,"UIHC"]
[null,null,null,null,null,"UIS"]
[null,null,null,null,null,"ULH"]
[null,null,null,null,null,"UMBF"]
[null,null,null,null,null,"UMH"]
[null,null,null,null,null,"UMPQ"]
[null,null,null,null,null,"UNB"]
[null,null,null,null,null,"UNF"]
[null,null,null,null,null,"UNFI"]
[null,null,null,null,null,"UNTY"]
[null,null,null,null,null,"UPLD"]
[null,null,null,null,null,"USAT"]
[null,null,null,null,null,"USCR"]
[null,null,null,null,null,"USLM"]
[null,null,null,null,null,"USNA"]
[null,null,null,null,null,"USPH"]
[null,null,null,null,null,"UTL"]
[null,null,null,null,null,"UTMD"]
[null,null,null,null,null,"UVE"]
[null,null,null,null,null,"UVSP"]
[null,null,null,null,null,"UVV"]
[null,null,null,null,null,"VAC"]
[null,null,null,null,null,"VALU"]
[null,null,null,null,null,"VBIV"]
[null,null,null,null,null,"VBTX"]
[null,null,null,null,null,"VCRA"]
[null,null,null,null,null,"VCYT"]
[null,null,null,null,null,"VEC"]
[null,null,null,null,null,"VECO"]
[null,null,null,null,null,"VERI"]
[null,null,null,null,null,"VG"]
[null,null,null,null,null,"VGR"]
[null,null,null,null,null,"VHC"]
[null,null,null,null,null,"VHI"]
[null,null,null,null,null,"VIAV"]
[null,null,null,null,null,"VICR"]
[null,null,null,null,null,"VIRT"]
[null,null,null,null,null,"VIVE"]
[null,null,null,null,null,"VIVO"]
[null,null,null,null,null,"VLGEA"]
[null,null,null,null,null,"VLY"]
[null,null,null,null,null,"VNDA"]
[null,null,null,null,null,"VOXX"]
[null,null,null,null,null,"VPG"]
[null,null,null,null,null,"VRA"]
[null,null,null,null,null,"VRAY"]
[null,null,null,null,null,"VREX"]
[null,null,null,null,null,"VRNS"]
[null,null,null,null,null,"VRNT"]
[null,null,null,null,null,"VRS"]
[null,null,null,null,null,"VRTS"]
[null,null,null,null,null,"VRTU"]
[null,null,null,null,null,"VRTV"]
[null,null,null,null,null,"VSAT"]
[null,null,null,null,null,"VSEC"]
[null,null,null,null,null,"VSH"]
[null,null,null,null,null,"VSLR"]
[null,null,null,null,null,"VSTO"]
[null,null,null,null,null,"VTVT"]
[null,null,null,null,null,"VVI"]
[null,null,null,null,null,"VYGR"]
[null,null,null,null,null,"WABC"]
[null,null,null,null,null,"WAFD"]
[null,null,null,null,null,"WASH"]
[null,null,null,null,null,"WATT"]
[null,null,null,null,null,"WD"]
[null,null,null,null,null,"WDFC"]
[null,null,null,null,null,"WDR"]
[null,null,null,null,null,"WERN"]
[null,null,null,null,null,"WETF"]
[null,null,null,null,null,"WEYS"]
[null,null,null,null,null,"WGO"]
[null,null,null,null,null,"WHG"]
[null,null,null,null,null,"WIFI"]
[null,null,null,null,null,"WINA"]
[null,null,null,null,null,"WINS"]
[null,null,null,null,null,"WIRE"]
[null,null,null,null,null,"WK"]
[null,null,null,null,null,"WLDN"]
[null,null,null,null,null,"WLFC"]
[null,null,null,null,null,"WMC"]
[null,null,null,null,null,"WMGI"]
[null,null,null,null,null,"WMK"]
[null,null,null,null,null,"WMS"]
[null,null,null,null,null,"WNC"]
[null,null,null,null,null,"WNEB"]
[null,null,null,null,null,"WOR"]
[null,null,null,null,null,"WPG"]
[null,null,null,null,null,"WRE"]
[null,null,null,null,null,"WRLD"]
[null,null,null,null,null,"WSBC"]
[null,null,null,null,null,"WSBF"]
[null,null,null,null,null,"WSFS"]
[null,null,null,null,null,"WSR"]
[null,null,null,null,null,"WTBA"]
[null,null,null,null,null,"WTFC"]
[null,null,null,null,null,"WTI"]
[null,null,null,null,null,"WTS"]
[null,null,null,null,null,"WTTR"]
[null,null,null,null,null,"WVE"]
[null,null,null,null,null,"WWD"]
[null,null,null,null,null,"WWE"]
[null,null,null,null,null,"WWW"]
[null,null,null,null,null,"XBIT"]
[null,null,null,null,null,"XENT"]
[null,null,null,null,null,"XHR"]
[null,null,null,null,null,"XLRN"]
[null,null,null,null,null,"XNCR"]
[null,null,null,null,null,"XONE"]
[null,null,null,null,null,"XPER"]
[null,null,null,null,null,"YELP"]
[null,null,null,null,null,"YEXT"]
[null,null,null,null,null,"YORW"]
[null,null,null,null,null,"YRCW"]
[null,null,null,null,null,"ZAGG"]
[null,null,null,null,null,"ZEN"]
[null,null,null,null,null,"ZEUS"]
[null,null,null,null,null,"ZGNX"]
[null,null,null,null,null,"ZIOP"]
[null,null,null,null,null,"ZIXI"]
[null,null,null,null,null,"ZUMZ"]
[null,null,null,null,null,"ZYNE"]

{"sheet":"Result","index":2,"n_rows":1,"n_cols":13,"rows_kept":1,"cut":false,"hidden":false,"merged":[]}
["Ticker","Expirace","Ask","Bid","Strike 1","Conver","Rever","Strike 2_5","Conver","Rever","Strike 5","Conver","Rever"]

{"sheet":"List1","index":3,"n_rows":4,"n_cols":7,"rows_kept":4,"cut":false,"hidden":false,"merged":[]}
["tws.twsrtdserverctrl"]
["SMART"]
[null,null,null,null,"Ask","Bid","Last"]
[null,null,"AAN",{"$f":"C4 & \"/\" & $A$2","v":"AAN/SMART"},{"$f":"RTD($A$1,,D4,$E$3)","v":54.75},{"$f":"RTD($A$1,,D4,$F$3)","v":51.26},{"$f":"RTD($A$1,,D4,$G$3)","v":0}]